[Event "Late-Titled-Tuesday-Blitz-July-09-2024"]
[Site "Chess.com"]
[Date "2024.07.09"]
[Round "4"]
[White "PattyCastillo"]
[Black "scandalgod"]
[Result "0-1"]
[WhiteElo "1984"]
[BlackElo "2644"]
[TimeControl "180+1"]
[EndTime "14:40:18 PDT"]
[Termination "scandalgod won by checkmate"]

1. d4 {[%clk 0:02:59.4]} 1... d5 {[%clk 0:02:58.8]} 2. Nf3 {[%clk 0:02:59.4]}
2... Nf6 {[%clk 0:02:58.1]} 3. e3 {[%clk 0:02:59.4]} 3... c6 {[%clk 0:02:56.8]}
4. Nbd2 {[%clk 0:02:57.5]} 4... Bf5 {[%clk 0:02:56.7]} 5. c4 {[%clk 0:02:56.9]}
5... e6 {[%clk 0:02:56.1]} 6. Qb3 {[%clk 0:02:56.5]} 6... Qc7 {[%clk 0:02:55.1]}
7. Bd3 {[%clk 0:02:51.8]} 7... Bxd3 {[%clk 0:02:49.3]} 8. Qxd3 {[%clk
0:02:51.4]} 8... Nbd7 {[%clk 0:02:49.4]} 9. O-O {[%clk 0:02:49.3]} 9... Be7
{[%clk 0:02:48.8]} 10. b3 {[%clk 0:02:49.2]} 10... O-O {[%clk 0:02:48.2]} 11.
Bb2 {[%clk 0:02:49.3]} 11... Rfd8 {[%clk 0:02:48]} 12. Rac1 {[%clk 0:02:47.2]}
12... Qa5 {[%clk 0:02:45.8]} 13. a3 {[%clk 0:02:41.9]} 13... Rac8 {[%clk
0:02:25.8]} 14. b4 {[%clk 0:02:24.3]} 14... Qa6 {[%clk 0:02:22.5]} 15. Rfd1
{[%clk 0:02:17.3]} 15... Nb6 {[%clk 0:01:29.9]} 16. Ne5 {[%clk 0:02:07.3]} 16...
Nfd7 {[%clk 0:01:22.2]} 17. c5 {[%clk 0:01:47.7]} 17... Nxe5 {[%clk 0:01:09.7]}
18. Qxa6 {[%clk 0:01:46.5]} 18... bxa6 {[%clk 0:01:07.5]} 19. dxe5 {[%clk
0:01:38.6]} 19... Nd7 {[%clk 0:01:04.6]} 20. Bd4 {[%clk 0:01:26.1]} 20... a5
{[%clk 0:01:02.5]} 21. e4 {[%clk 0:01:15.3]} 21... Rb8 {[%clk 0:00:58.8]} 22.
exd5 {[%clk 0:01:09.7]} 22... exd5 {[%clk 0:00:56.7]} 23. Rb1 {[%clk 0:00:53]}
23... Rb5 {[%clk 0:00:56]} 24. Rb3 {[%clk 0:00:42.6]} 24... Rdb8 {[%clk
0:00:46.4]} 25. Rdb1 {[%clk 0:00:41.2]} 25... axb4 {[%clk 0:00:40.3]} 26. axb4
{[%clk 0:00:39]} 26... Bg5 {[%clk 0:00:29.6]} 27. Nf3 {[%clk 0:00:28]} 27... Be7
{[%clk 0:00:23.8]} 28. Nd2 {[%clk 0:00:27.1]} 28... h6 {[%clk 0:00:23.6]} 29. f4
{[%clk 0:00:26.7]} 29... Nf8 {[%clk 0:00:18.8]} 30. Kf2 {[%clk 0:00:25.7]} 30...
Ne6 {[%clk 0:00:18.9]} 31. Ke3 {[%clk 0:00:22.9]} 31... g5 {[%clk 0:00:17.7]}
32. g3 {[%clk 0:00:22.7]} 32... Kg7 {[%clk 0:00:16.5]} 33. f5 {[%clk 0:00:12.1]}
33... Nxd4 {[%clk 0:00:14.2]} 34. Kxd4 {[%clk 0:00:12.3]} 34... f6 {[%clk
0:00:11.7]} 35. e6 {[%clk 0:00:10.1]} 35... Bd8 {[%clk 0:00:11.5]} 36. Kc3
{[%clk 0:00:09.3]} 36... Bc7 {[%clk 0:00:10.8]} 37. Re1 {[%clk 0:00:08.8]} 37...
Be5+ {[%clk 0:00:10.3]} 38. Rxe5 {[%clk 0:00:08.5]} 38... fxe5 {[%clk
0:00:10.2]} 39. Nf3 {[%clk 0:00:09]} 39... d4+ {[%clk 0:00:09]} 40. Kc4 {[%clk
0:00:08.3]} 40... a5 {[%clk 0:00:09.1]} 41. Nxe5 {[%clk 0:00:07.6]} 41... Rxb4+
{[%clk 0:00:09.5]} 42. Rxb4 {[%clk 0:00:07.7]} 42... Rxb4+ {[%clk 0:00:10]} 43.
Kd3 {[%clk 0:00:08]} 43... Kf6 {[%clk 0:00:05.9]} 44. Nxc6 {[%clk 0:00:07.9]}
44... Rb5 {[%clk 0:00:01]} 45. Kxd4 {[%clk 0:00:07.6]} 45... a4 {[%clk 0:00:01]}
46. Kc4 {[%clk 0:00:07.4]} 46... Rb1 {[%clk 0:00:01]} 47. Nd4 {[%clk 0:00:06.3]}
47... a3 {[%clk 0:00:01.1]} 48. Nc2 {[%clk 0:00:06.1]} 48... a2 {[%clk
0:00:01.2]} 49. Kd3 {[%clk 0:00:06.2]} 49... Rb2 {[%clk 0:00:01.3]} 50. Kc3
{[%clk 0:00:06]} 50... Rxc2+ {[%clk 0:00:01.4]} 51. Kxc2 {[%clk 0:00:06.9]}
51... a1=Q {[%clk 0:00:02.2]} 52. e7 {[%clk 0:00:07.3]} 52... Qa8 {[%clk
0:00:02.8]} 53. e8=Q {[%clk 0:00:07.2]} 53... Qxe8 {[%clk 0:00:03]} 54. Kd3
{[%clk 0:00:07.7]} 54... Qc6 {[%clk 0:00:03.9]} 55. Kc4 {[%clk 0:00:08.3]} 55...
Kxf5 {[%clk 0:00:04.4]} 56. Kb4 {[%clk 0:00:08.4]} 56... Ke4 {[%clk 0:00:05]}
57. Ka5 {[%clk 0:00:08.7]} 57... Kf3 {[%clk 0:00:05.3]} 58. Kb4 {[%clk 0:00:09]}
58... Kg2 {[%clk 0:00:05.9]} 59. Kc4 {[%clk 0:00:09.9]} 59... Kxh2 {[%clk
0:00:06.4]} 60. Kd4 {[%clk 0:00:10.3]} 60... Kxg3 {[%clk 0:00:06.9]} 61. Ke5
{[%clk 0:00:11.2]} 61... h5 {[%clk 0:00:07.3]} 62. Kf5 {[%clk 0:00:12.1]} 62...
h4 {[%clk 0:00:07.7]} 63. Kxg5 {[%clk 0:00:13]} 63... h3 {[%clk 0:00:08.4]} 64.
Kh5 {[%clk 0:00:13.9]} 64... h2 {[%clk 0:00:08.8]} 65. Kg5 {[%clk 0:00:14.2]}
65... h1=Q {[%clk 0:00:08.4]} 66. Kf5 {[%clk 0:00:14.2]} 66... Qh5# {[%clk
0:00:09]} 0-1

[Event "Late-Titled-Tuesday-Blitz-July-09-2024"]
[Site "Chess.com"]
[Date "2024.07.09"]
[Round "4"]
[White "RodriQA"]
[Black "karinachess1"]
[Result "0-1"]
[WhiteElo "2439"]
[BlackElo "2670"]
[TimeControl "180+1"]
[EndTime "14:40:34 PDT"]
[Termination "karinachess1 won on time"]

1. b4 {[%clk 0:02:55.4]} 1... e5 {[%clk 0:02:59.6]} 2. Bb2 {[%clk 0:02:55]} 2...
Bxb4 {[%clk 0:02:59.6]} 3. Bxe5 {[%clk 0:02:54.5]} 3... Nf6 {[%clk 0:02:59.8]}
4. Nf3 {[%clk 0:02:54.2]} 4... O-O {[%clk 0:02:59.7]} 5. c3 {[%clk 0:02:50.7]}
5... Be7 {[%clk 0:02:58.7]} 6. d4 {[%clk 0:02:51]} 6... d5 {[%clk 0:02:57.8]} 7.
Nbd2 {[%clk 0:02:50.8]} 7... c5 {[%clk 0:02:58.4]} 8. e3 {[%clk 0:02:51]} 8...
Nc6 {[%clk 0:02:59]} 9. Bd3 {[%clk 0:02:48.9]} 9... Qa5 {[%clk 0:02:45.8]} 10.
O-O {[%clk 0:02:42.8]} 10... Qxc3 {[%clk 0:02:40.3]} 11. Bxf6 {[%clk 0:02:16.1]}
11... Bxf6 {[%clk 0:02:37.6]} 12. Bb5 {[%clk 0:01:52.6]} 12... cxd4 {[%clk
0:02:25.3]} 13. Rc1 {[%clk 0:01:51.3]} 13... Qa5 {[%clk 0:02:24.6]} 14. Bxc6
{[%clk 0:01:50.7]} 14... bxc6 {[%clk 0:02:25.5]} 15. Nb3 {[%clk 0:01:50.3]}
15... Qxa2 {[%clk 0:02:17.2]} 16. Nfxd4 {[%clk 0:01:47.3]} 16... Rb8 {[%clk
0:01:53.5]} 17. Ra1 {[%clk 0:00:30.1]} 17... Qb2 {[%clk 0:01:53.2]} 18. Rxa7
{[%clk 0:00:30.7]} 18... Rb6 {[%clk 0:01:35.4]} 19. Qd3 {[%clk 0:00:26.4]} 19...
Bxd4 {[%clk 0:01:18.1]} 20. Nxd4 {[%clk 0:00:23]} 20... c5 {[%clk 0:01:18.6]}
21. Nf3 {[%clk 0:00:19.8]} 21... Qb3 {[%clk 0:01:13.2]} 22. Qd2 {[%clk
0:00:13.2]} 22... Be6 {[%clk 0:01:03.8]} 23. h3 {[%clk 0:00:11.9]} 23... Qb4
{[%clk 0:01:01.5]} 24. Qc2 {[%clk 0:00:10.8]} 24... h6 {[%clk 0:00:57.7]} 25.
Rc1 {[%clk 0:00:10.2]} 25... Rc8 {[%clk 0:00:56.7]} 26. Nd4 {[%clk 0:00:08.6]}
26... Qb2 {[%clk 0:00:51]} 27. Nxe6 {[%clk 0:00:05.4]} 27... Qxc2 {[%clk
0:00:49.4]} 28. Rxc2 {[%clk 0:00:04.7]} 28... fxe6 {[%clk 0:00:49.9]} 29. Rd7
{[%clk 0:00:03.9]} 29... c4 {[%clk 0:00:49]} 30. Kf1 {[%clk 0:00:04.4]} 30...
Rbc6 {[%clk 0:00:47.1]} 31. Ke2 {[%clk 0:00:04.6]} 31... R8c7 {[%clk 0:00:47.6]}
32. Rd8+ {[%clk 0:00:04.8]} 32... Kf7 {[%clk 0:00:47.6]} 33. e4 {[%clk
0:00:05.1]} 33... Rc5 {[%clk 0:00:40.8]} 34. Ke3 {[%clk 0:00:04.2]} 34... Ke7
{[%clk 0:00:40.5]} 35. Rg8 {[%clk 0:00:04.3]} 35... Kd6 {[%clk 0:00:36.4]} 36.
f4 {[%clk 0:00:02.8]} 36... dxe4 {[%clk 0:00:33.8]} 37. Kxe4 {[%clk 0:00:03.7]}
37... c3 {[%clk 0:00:33.7]} 38. Rd8+ {[%clk 0:00:03.9]} 38... Ke7 {[%clk
0:00:33.9]} 39. Rg8 {[%clk 0:00:03.4]} 39... Kf7 {[%clk 0:00:33.4]} 40. Rd8
{[%clk 0:00:03.8]} 40... Rc4+ {[%clk 0:00:33.5]} 41. Ke3 {[%clk 0:00:04.3]}
41... Rb7 {[%clk 0:00:24.1]} 42. Rd4 {[%clk 0:00:03.2]} 42... Rb2 {[%clk
0:00:14.8]} 43. Rxc4 {[%clk 0:00:01.5]} 43... Rxc2 {[%clk 0:00:15.1]} 44. g4
{[%clk 0:00:02.2]} 44... Rh2 {[%clk 0:00:14.1]} 45. Rxc3 {[%clk 0:00:01.7]}
45... Rxh3+ {[%clk 0:00:14]} 46. Kd4 {[%clk 0:00:02.6]} 46... Rxc3 {[%clk
0:00:14]} 47. Kxc3 {[%clk 0:00:03.5]} 47... Kf6 {[%clk 0:00:14.1]} 48. Kd4
{[%clk 0:00:03.9]} 48... g6 {[%clk 0:00:14.6]} 49. Ke4 {[%clk 0:00:04.1]} 49...
h5 {[%clk 0:00:14.5]} 50. g5+ {[%clk 0:00:03.6]} 50... Kf7 {[%clk 0:00:14.4]}
51. Kf3 {[%clk 0:00:03.1]} 51... Ke7 {[%clk 0:00:14.6]} 52. Ke4 {[%clk
0:00:03.2]} 52... Kd6 {[%clk 0:00:15.1]} 53. Kd4 {[%clk 0:00:03.8]} 53... Ke7
{[%clk 0:00:12.1]} 54. Ke4 {[%clk 0:00:02.9]} 54... Kd7 {[%clk 0:00:11]} 55. Ke3
{[%clk 0:00:03]} 55... Kd6 {[%clk 0:00:11.4]} 56. Kd4 {[%clk 0:00:02.7]} 56...
h4 {[%clk 0:00:11.9]} 57. Ke4 {[%clk 0:00:03.1]} 57... Kc5 {[%clk 0:00:11.4]}
58. Ke5 {[%clk 0:00:01.9]} 58... h3 {[%clk 0:00:10.8]} 59. Kxe6 {[%clk
0:00:02.6]} 59... h2 {[%clk 0:00:11.3]} 60. f5 {[%clk 0:00:03.5]} 60... h1=Q
{[%clk 0:00:12.1]} 61. fxg6 {[%clk 0:00:03.9]} 61... Qe4+ {[%clk 0:00:12.4]} 62.
Kf7 {[%clk 0:00:04.4]} 62... Qf5+ {[%clk 0:00:12.8]} 63. Kg7 {[%clk 0:00:04.5]}
63... Qxg5 {[%clk 0:00:13.2]} 64. Kh7 {[%clk 0:00:05.1]} 64... Qh5+ {[%clk
0:00:13.6]} 65. Kg7 {[%clk 0:00:05.2]} 65... Kd6 {[%clk 0:00:14.1]} 66. Kf7
{[%clk 0:00:03.4]} 66... Qf5+ {[%clk 0:00:14.1]} 67. Kg7 {[%clk 0:00:01.9]}
67... Ke6 {[%clk 0:00:14]} 68. Kh6 {[%clk 0:00:01.6]} 68... Kf6 {[%clk
0:00:12.8]} 69. Kh7 {[%clk 0:00:01]} 69... Qxg6+ {[%clk 0:00:13]} 0-1

[Event "Late-Titled-Tuesday-Blitz-July-09-2024"]
[Site "Chess.com"]
[Date "2024.07.09"]
[Round "4"]
[White "tgpgoat"]
[Black "jcmesafischer"]
[Result "1-0"]
[WhiteElo "2512"]
[BlackElo "2354"]
[TimeControl "180+1"]
[EndTime "14:40:48 PDT"]
[Termination "tgpgoat won by checkmate"]

1. e4 {[%clk 0:03:00.9]} 1... c5 {[%clk 0:02:59.2]} 2. Nc3 {[%clk 0:02:59.1]}
2... a6 {[%clk 0:02:59.1]} 3. d4 {[%clk 0:02:59]} 3... cxd4 {[%clk 0:02:59.2]}
4. Qxd4 {[%clk 0:02:59.2]} 4... Nc6 {[%clk 0:02:59.8]} 5. Qd2 {[%clk 0:02:58.9]}
5... g6 {[%clk 0:03:00.3]} 6. b3 {[%clk 0:02:58.2]} 6... Bg7 {[%clk 0:02:57.5]}
7. Bb2 {[%clk 0:02:58.8]} 7... d6 {[%clk 0:02:57.5]} 8. O-O-O {[%clk 0:02:57.6]}
8... b5 {[%clk 0:02:57.6]} 9. Kb1 {[%clk 0:02:50]} 9... b4 {[%clk 0:02:57.4]}
10. Nd5 {[%clk 0:02:49.4]} 10... Bxb2 {[%clk 0:02:58.3]} 11. Kxb2 {[%clk
0:02:49.6]} 11... Be6 {[%clk 0:02:56.2]} 12. f4 {[%clk 0:02:46.7]} 12... Bxd5
{[%clk 0:02:56]} 13. exd5 {[%clk 0:02:46.1]} 13... Nb8 {[%clk 0:02:55.1]} 14.
Nf3 {[%clk 0:02:45.4]} 14... a5 {[%clk 0:02:52.6]} 15. Bb5+ {[%clk 0:02:44.5]}
15... Nd7 {[%clk 0:02:52.9]} 16. Nd4 {[%clk 0:02:41.5]} 16... Qb6 {[%clk
0:02:40.1]} 17. Bxd7+ {[%clk 0:02:17.4]} 17... Kxd7 {[%clk 0:02:37.9]} 18. Rhe1
{[%clk 0:02:18.3]} 18... Rc8 {[%clk 0:02:30.6]} 19. Nc6 {[%clk 0:02:18.2]} 19...
e6 {[%clk 0:02:27.9]} 20. dxe6+ {[%clk 0:02:16]} 20... Kxc6 {[%clk 0:02:27]} 21.
Qxd6+ {[%clk 0:01:47.6]} 21... Kb7 {[%clk 0:02:26.8]} 22. Qd7+ {[%clk
0:01:37.1]} 22... Qc7 {[%clk 0:02:24]} 23. Qb5+ {[%clk 0:01:27.1]} 23... Ka8
{[%clk 0:02:17.8]} 24. Qa6+ {[%clk 0:01:07.6]} 24... Kb8 {[%clk 0:02:16.2]} 25.
c4 {[%clk 0:00:37.8]} 25... bxc3+ {[%clk 0:02:09.6]} 26. Kc2 {[%clk 0:00:37.7]}
26... Qb7 {[%clk 0:01:59.6]} 27. Qxa5 {[%clk 0:00:22.4]} 27... Qxg2+ {[%clk
0:01:58.2]} 28. Kd3 {[%clk 0:00:18.9]} 28... Qf3+ {[%clk 0:01:47.4]} 29. Kc2
{[%clk 0:00:17.7]} 29... Qf2+ {[%clk 0:01:33]} 30. Kd3 {[%clk 0:00:15.4]} 30...
c2 {[%clk 0:01:10.5]} 31. Qb5+ {[%clk 0:00:11.5]} 31... Ka8 {[%clk 0:01:10.1]}
32. Qd5+ {[%clk 0:00:07]} 32... Kb8 {[%clk 0:01:07.5]} 33. Qb5+ {[%clk
0:00:07.6]} 33... Ka7 {[%clk 0:01:05.8]} 34. Qd7+ {[%clk 0:00:08.1]} 34... Kb6
{[%clk 0:00:57.3]} 35. Qxc8 {[%clk 0:00:06.3]} 35... cxd1=Q+ {[%clk 0:00:57]}
36. Rxd1 {[%clk 0:00:07.2]} 36... Qf3+ {[%clk 0:00:56.3]} 37. Kd2 {[%clk
0:00:07.2]} 37... Qxf4+ {[%clk 0:00:55.5]} 38. Kc2 {[%clk 0:00:06.7]} 38... Qe4+
{[%clk 0:00:55.6]} 39. Rd3 {[%clk 0:00:07.3]} 39... Qxe6 {[%clk 0:00:54.5]} 40.
Qxe6+ {[%clk 0:00:06.3]} 40... fxe6 {[%clk 0:00:54.3]} 41. Rd8 {[%clk
0:00:07.2]} 41... h5 {[%clk 0:00:52.6]} 42. a4 {[%clk 0:00:06.7]} 42... g5
{[%clk 0:00:53]} 43. Kd2 {[%clk 0:00:06.5]} 43... g4 {[%clk 0:00:53.5]} 44. Ke2
{[%clk 0:00:06.9]} 44... h4 {[%clk 0:00:54.1]} 45. Kf1 {[%clk 0:00:06.9]} 45...
g3 {[%clk 0:00:54.1]} 46. hxg3 {[%clk 0:00:07.2]} 46... h3 {[%clk 0:00:47.2]}
47. Kg1 {[%clk 0:00:07.5]} 47... h2+ {[%clk 0:00:47.1]} 48. Kh1 {[%clk
0:00:07.4]} 48... e5 {[%clk 0:00:46.6]} 49. Re8 {[%clk 0:00:07.9]} 49... e4
{[%clk 0:00:44.4]} 50. g4 {[%clk 0:00:08.2]} 50... Kc5 {[%clk 0:00:41.6]} 51. g5
{[%clk 0:00:08.5]} 51... Kd4 {[%clk 0:00:41.6]} 52. g6 {[%clk 0:00:08.8]} 52...
e3 {[%clk 0:00:40.5]} 53. g7 {[%clk 0:00:09]} 53... Rh4 {[%clk 0:00:36.8]} 54.
Rxg8 {[%clk 0:00:07.9]} 54... e2 {[%clk 0:00:37.4]} 55. Re8 {[%clk 0:00:07.2]}
55... Re4 {[%clk 0:00:32.6]} 56. Rxe4+ {[%clk 0:00:07.7]} 56... Kxe4 {[%clk
0:00:33.5]} 57. g8=Q {[%clk 0:00:07.4]} 57... e1=Q+ {[%clk 0:00:33.9]} 58. Kxh2
{[%clk 0:00:08.1]} 58... Qh4+ {[%clk 0:00:31]} 59. Kg1 {[%clk 0:00:08.1]} 59...
Qe1+ {[%clk 0:00:30.7]} 60. Kg2 {[%clk 0:00:07.1]} 60... Qe2+ {[%clk 0:00:28]}
61. Kh3 {[%clk 0:00:07.3]} 61... Qh5+ {[%clk 0:00:26.6]} 62. Kg3 {[%clk
0:00:07.1]} 62... Qf3+ {[%clk 0:00:26.7]} 63. Kh2 {[%clk 0:00:07.2]} 63... Qh5+
{[%clk 0:00:25.1]} 64. Kg2 {[%clk 0:00:07.2]} 64... Qf3+ {[%clk 0:00:23.7]} 65.
Kh2 {[%clk 0:00:06.4]} 65... Qh5+ {[%clk 0:00:22.9]} 66. Kg1 {[%clk 0:00:06.8]}
66... Qd1+ {[%clk 0:00:22.5]} 67. Kf2 {[%clk 0:00:06]} 67... Qf3+ {[%clk
0:00:20.5]} 68. Ke1 {[%clk 0:00:04.5]} 68... Qe3+ {[%clk 0:00:16.5]} 69. Kd1
{[%clk 0:00:05]} 69... Qd3+ {[%clk 0:00:16.6]} 70. Kc1 {[%clk 0:00:05.4]} 70...
Qc3+ {[%clk 0:00:16.7]} 71. Kb1 {[%clk 0:00:05.8]} 71... Qe1+ {[%clk 0:00:16.9]}
72. Kb2 {[%clk 0:00:06.3]} 72... Qd2+ {[%clk 0:00:17.3]} 73. Ka3 {[%clk
0:00:06.8]} 73... Qd6+ {[%clk 0:00:17.5]} 74. b4 {[%clk 0:00:06.5]} 74... Qd3+
{[%clk 0:00:14]} 75. Qb3 {[%clk 0:00:07.4]} 75... Qd2 {[%clk 0:00:14]} 76. b5
{[%clk 0:00:07.5]} 76... Ke5 {[%clk 0:00:10.4]} 77. b6 {[%clk 0:00:07.3]} 77...
Kd6 {[%clk 0:00:07.1]} 78. Qb4+ {[%clk 0:00:07.1]} 78... Qxb4+ {[%clk 0:00:07]}
79. Kxb4 {[%clk 0:00:08]} 79... Kc6 {[%clk 0:00:07.8]} 80. a5 {[%clk 0:00:08.8]}
80... Kb7 {[%clk 0:00:08.7]} 81. Kb5 {[%clk 0:00:09.1]} 81... Ka8 {[%clk
0:00:09.6]} 82. Kc6 {[%clk 0:00:09.3]} 82... Kb8 {[%clk 0:00:10.5]} 83. a6
{[%clk 0:00:09.7]} 83... Ka8 {[%clk 0:00:11.4]} 84. b7+ {[%clk 0:00:09.2]} 84...
Kb8 {[%clk 0:00:12.3]} 85. Kd7 {[%clk 0:00:08.7]} 85... Ka7 {[%clk 0:00:12.3]}
86. Kc7 {[%clk 0:00:09.3]} 86... Kxa6 {[%clk 0:00:13.2]} 87. b8=Q {[%clk
0:00:09.4]} 87... Ka5 {[%clk 0:00:14.1]} 88. Kc6 {[%clk 0:00:09.5]} 88... Ka4
{[%clk 0:00:15]} 89. Kc5 {[%clk 0:00:10]} 89... Ka3 {[%clk 0:00:15.9]} 90. Kc4
{[%clk 0:00:10.5]} 90... Ka2 {[%clk 0:00:16.8]} 91. Kc3 {[%clk 0:00:11.1]} 91...
Ka1 {[%clk 0:00:17.7]} 92. Qb2# {[%clk 0:00:10.8]} 1-0

[Event "Late-Titled-Tuesday-Blitz-July-09-2024"]
[Site "Chess.com"]
[Date "2024.07.09"]
[Round "4"]
[White "Kowarenai"]
[Black "Mops_2004"]
[Result "1/2-1/2"]
[WhiteElo "2552"]
[BlackElo "2736"]
[TimeControl "180+1"]
[EndTime "14:41:03 PDT"]
[Termination "Game drawn - insufficient material"]

1. c4 {[%clk 0:02:58.7]} 1... f5 {[%clk 0:02:58.1]} 2. d3 {[%clk 0:02:57.1]}
2... e5 {[%clk 0:02:57.4]} 3. Nc3 {[%clk 0:02:57]} 3... Bb4 {[%clk 0:02:57.2]}
4. Qb3 {[%clk 0:02:56.5]} 4... Nc6 {[%clk 0:02:54.7]} 5. a3 {[%clk 0:02:56.1]}
5... Bxc3+ {[%clk 0:02:39.3]} 6. Qxc3 {[%clk 0:02:56]} 6... a5 {[%clk
0:02:39.3]} 7. g3 {[%clk 0:02:50.6]} 7... a4 {[%clk 0:02:38.5]} 8. Bg2 {[%clk
0:02:50.8]} 8... d6 {[%clk 0:02:33.3]} 9. Nf3 {[%clk 0:02:47.8]} 9... Nf6 {[%clk
0:02:33.4]} 10. Bg5 {[%clk 0:02:47.6]} 10... h6 {[%clk 0:02:31.2]} 11. Bxf6
{[%clk 0:02:47.6]} 11... Qxf6 {[%clk 0:02:32.1]} 12. O-O {[%clk 0:02:48.2]}
12... O-O {[%clk 0:02:29.5]} 13. e3 {[%clk 0:02:48.1]} 13... Bd7 {[%clk
0:02:10.9]} 14. Rac1 {[%clk 0:02:41.8]} 14... Kh8 {[%clk 0:01:58.8]} 15. Nd2
{[%clk 0:01:46.2]} 15... f4 {[%clk 0:01:55.7]} 16. exf4 {[%clk 0:01:46.1]} 16...
exf4 {[%clk 0:01:50.2]} 17. Qxf6 {[%clk 0:01:45.9]} 17... Rxf6 {[%clk 0:01:50]}
18. Bxc6 {[%clk 0:01:23.2]} 18... Bxc6 {[%clk 0:01:49.5]} 19. d4 {[%clk
0:01:23.5]} 19... b6 {[%clk 0:01:34.8]} 20. d5 {[%clk 0:01:23.5]} 20... Bd7
{[%clk 0:01:34]} 21. Rc3 {[%clk 0:01:21.6]} 21... Re8 {[%clk 0:01:31.2]} 22. Rd1
{[%clk 0:00:55.8]} 22... g5 {[%clk 0:01:28.3]} 23. f3 {[%clk 0:00:41.9]} 23...
Re2 {[%clk 0:01:27.4]} 24. Ne4 {[%clk 0:00:41.2]} 24... Rf8 {[%clk 0:01:27.3]}
25. Rd2 {[%clk 0:00:40.9]} 25... Re1+ {[%clk 0:01:09.7]} 26. Kg2 {[%clk
0:00:40.9]} 26... Kg7 {[%clk 0:01:08.4]} 27. Nf2 {[%clk 0:00:41.3]} 27... fxg3
{[%clk 0:00:54.1]} 28. hxg3 {[%clk 0:00:42.2]} 28... Bf5 {[%clk 0:00:53.9]} 29.
g4 {[%clk 0:00:37.4]} 29... Bg6 {[%clk 0:00:53.3]} 30. Nd3 {[%clk 0:00:35.2]}
30... Re3 {[%clk 0:00:50.8]} 31. Nb4 {[%clk 0:00:34.2]} 31... Rxc3 {[%clk
0:00:47.1]} 32. bxc3 {[%clk 0:00:35.1]} 32... Re8 {[%clk 0:00:45.5]} 33. Kf2
{[%clk 0:00:35.2]} 33... Kf6 {[%clk 0:00:29.7]} 34. Nc6 {[%clk 0:00:34.8]} 34...
h5 {[%clk 0:00:18.4]} 35. gxh5 {[%clk 0:00:33.9]} 35... Bxh5 {[%clk 0:00:19.3]}
36. Nd4 {[%clk 0:00:33.2]} 36... Bf7 {[%clk 0:00:15]} 37. Rb2 {[%clk 0:00:32.5]}
37... Rh8 {[%clk 0:00:13.7]} 38. Rb4 {[%clk 0:00:32.2]} 38... Be8 {[%clk
0:00:12.2]} 39. Nb5 {[%clk 0:00:32.3]} 39... Bxb5 {[%clk 0:00:04.6]} 40. cxb5
{[%clk 0:00:33.2]} 40... Rh2+ {[%clk 0:00:04.5]} 41. Kg3 {[%clk 0:00:33.4]}
41... Rc2 {[%clk 0:00:05.1]} 42. c4 {[%clk 0:00:33.3]} 42... Rc3 {[%clk
0:00:04.8]} 43. Rxa4 {[%clk 0:00:33.6]} 43... Kf5 {[%clk 0:00:05.3]} 44. Kg2
{[%clk 0:00:34.1]} 44... Kf4 {[%clk 0:00:05.4]} 45. c5+ {[%clk 0:00:34.1]} 45...
Ke5 {[%clk 0:00:03]} 46. cxb6 {[%clk 0:00:32.1]} 46... cxb6 {[%clk 0:00:03.9]}
47. Ra6 {[%clk 0:00:21]} 47... Kxd5 {[%clk 0:00:03.7]} 48. Rxb6 {[%clk
0:00:20.1]} 48... Rxa3 {[%clk 0:00:03.8]} 49. Rb8 {[%clk 0:00:20.5]} 49... Kc5
{[%clk 0:00:02.8]} 50. b6 {[%clk 0:00:20.1]} 50... Kc6 {[%clk 0:00:03.1]} 51.
Rg8 {[%clk 0:00:19.3]} 51... Kxb6 {[%clk 0:00:03]} 52. Rxg5 {[%clk 0:00:18.9]}
52... Kc6 {[%clk 0:00:02.8]} 53. Kf2 {[%clk 0:00:19.5]} 53... d5 {[%clk
0:00:03.2]} 54. Rg8 {[%clk 0:00:18.6]} 54... Kc5 {[%clk 0:00:03.4]} 55. Rc8+
{[%clk 0:00:18.6]} 55... Kd4 {[%clk 0:00:03.8]} 56. Rc2 {[%clk 0:00:18.7]} 56...
Rd3 {[%clk 0:00:03.5]} 57. Ke2 {[%clk 0:00:18.3]} 57... Re3+ {[%clk 0:00:03.5]}
58. Kf2 {[%clk 0:00:18.2]} 58... Kd3 {[%clk 0:00:03.6]} 59. Ra2 {[%clk
0:00:15.7]} 59... Re6 {[%clk 0:00:02.1]} 60. Ra3+ {[%clk 0:00:14.8]} 60... Kc4
{[%clk 0:00:02.6]} 61. Ra4+ {[%clk 0:00:15]} 61... Kc3 {[%clk 0:00:02.6]} 62.
Ra3+ {[%clk 0:00:15]} 62... Kb4 {[%clk 0:00:03]} 63. Ra8 {[%clk 0:00:14.2]}
63... d4 {[%clk 0:00:03.1]} 64. Rd8 {[%clk 0:00:12.6]} 64... Kc3 {[%clk
0:00:03.2]} 65. f4 {[%clk 0:00:13]} 65... d3 {[%clk 0:00:03.4]} 66. Kf3 {[%clk
0:00:13.3]} 66... d2 {[%clk 0:00:03.7]} 67. f5 {[%clk 0:00:13.3]} 67... Re1
{[%clk 0:00:02.5]} 68. Kf4 {[%clk 0:00:12.6]} 68... d1=Q {[%clk 0:00:02.8]} 69.
Rxd1 {[%clk 0:00:12.7]} 69... Rxd1 {[%clk 0:00:03.7]} 70. Ke5 {[%clk 0:00:12.8]}
70... Re1+ {[%clk 0:00:03]} 71. Kd5 {[%clk 0:00:12.9]} 71... Rd1+ {[%clk
0:00:02.6]} 72. Ke5 {[%clk 0:00:13.3]} 72... Re1+ {[%clk 0:00:02.8]} 73. Kd5
{[%clk 0:00:13.8]} 73... Rf1 {[%clk 0:00:03.3]} 74. Ke6 {[%clk 0:00:13.4]} 74...
Kd4 {[%clk 0:00:03.7]} 75. f6 {[%clk 0:00:14]} 75... Re1+ {[%clk 0:00:03.8]} 76.
Kd6 {[%clk 0:00:14.4]} 76... Rf1 {[%clk 0:00:03.9]} 77. Ke6 {[%clk 0:00:14.7]}
77... Kc5 {[%clk 0:00:03.1]} 78. Ke7 {[%clk 0:00:10.2]} 78... Re1+ {[%clk
0:00:02.5]} 79. Kd7 {[%clk 0:00:09.8]} 79... Rd1+ {[%clk 0:00:02.8]} 80. Ke7
{[%clk 0:00:09.9]} 80... Re1+ {[%clk 0:00:03.3]} 81. Kd7 {[%clk 0:00:10.4]}
81... Rf1 {[%clk 0:00:03.9]} 82. Ke7 {[%clk 0:00:10.7]} 82... Kc6 {[%clk
0:00:04.4]} 83. f7 {[%clk 0:00:11]} 83... Re1+ {[%clk 0:00:04.9]} 84. Kd8 {[%clk
0:00:10.8]} 84... Rd1+ {[%clk 0:00:04.4]} 85. Ke8 {[%clk 0:00:11.2]} 85... Re1+
{[%clk 0:00:03.6]} 86. Kd8 {[%clk 0:00:11.6]} 86... Ra1 {[%clk 0:00:02.6]} 87.
f8=Q {[%clk 0:00:10.6]} 87... Ra8+ {[%clk 0:00:03]} 88. Ke7 {[%clk 0:00:11.3]}
88... Rxf8 {[%clk 0:00:03.8]} 89. Kxf8 {[%clk 0:00:12.2]} 1/2-1/2